Workbook

Sheet Лист1
A1: Отчет о результатах мониторинга качества финансового менеджмента,
A2: осуществляемого главными администраторами средств районного бюджета
A3: Шарангского муниципального района за 2015 год
A4: № | B4: Наименование главного администратора средств районного бюджета | C4: КВСР | D4: 1.1. Своевре - менность представления предвари -тельного (планового) реестра расходных обязательств | F4: 1.2. Полнота информации о расходных обязательс-твах | H4: 1.3. Сроки представления обоснований бюджетных ассигнований на очередной финансовый год | J4: 1.4. Охват в обоснованиях бюджетных ассигнований на очередной финансовый год показателями непосредственных результатов (пояснительными записками) сумм ассигнований, доведенных Управлением финансов администрации Шарангского района в качестве предельных объемов ассигнований в ходе составления проекта районного бюджета | L4: 1.5 Доля бюджетных ассигнований, представленных в программном виде | N4: 1.6. Доля бюджетных ассигнований на предоставление муниципальных услуг в виде субсидий на выполнение муниципальных заданий | P4: 1.7.1. Качество планирования расходов: сумма положительных внесенных изменений в бюджетную роспись в связи с уточнением ассигнований по решению Земского собрания Шарангского района о районном бюджете | R4: 1.7.2. Качество планирования расходов: сумма отрицательных внесенных изменений в бюджетную роспись в связи с уточнением ассигнований по решению Земского собрания Шарангского района о районном бюджете | T4: 1.8. Качество планирования расходов: сумма внесенных положительных изменений в бюджетную роспись в связи с передвижками между кодами бюджетной классификации | V4: 1. Финансовое планирование | X4: Наименование главного администратора средств районного бюджета | Y4: КВСР | Z4: 2.1. Кассовое исполнение расходов | AB4: 2.2. Равномер- ность осуществляемых расходов в отчетном фин. году | AD4: 2.3. Кассовое исполнение муниципальных программ ГРБС | AF4: 2.4. Своевремен-ность принятия бюджетных обязательств | AH4: 2.7. Качество исполнения расходов: наличие просрочен - ной кредиторс-кой задолжен-ности | AI4: 2.8. Уровень подготовки платежных документов | AK4: 2.9. Уровень использования субсидий бюджетными и автономными учреждениями, предоставленных на выполнение муниципальных заданий | AM4: 2.10.Равномерность расходов, осуществляемых бюджетными и автономными уч-ми на выполнение муниципальных заданий | AO4: 2.Исполнение бюджета в части расходов | AQ4: Наименование главного администратора средств районного бюджета | AR4: КВСР | AS4: 3.1. Качество правовой базы главного администра-тора доходов районного бюджета по администри-рованию доходов | AT4: 3.2. Полнота зачисления платежей в районный бюджет по главному администра -тору доходов районного бюджета, объем невыясненных поступлений | AV4: 3.3. Отклонение кассового исполнения по доходам от прогноза по главному администратору доходов районного бюджета | AX4: 3.4. Эффективность управления дебиторской задолженностью по расчетам с дебиторами по доходам | AZ4: 3.Исполнение бюджета в части доходов | BB4: 4.1. Методи - ческие рекоменда- ции (указания) ГРБС по реализации муниципальной учетной политики | BC4: 4.2. Подготовка и внедрение управленческого учета | BD4: 4.3. Степень реализации ведомственного плана повышения эффективности бюджетных расходов | BE4: 4.4. Динамика объема материальных запасов | BG4: 4.5.Коэффициент сложности бюджетных ассигнований | BI4: 4. Учет и отчетность | BK4: Наименование главного администратора средств районного бюджета | BL4: 5.1. Осуществление мероприятий внутреннего контроля | BM4: 5.2. Доля недостач и хищений денежных средств и материальных ценностей | BO4: 5.Контроль и аудит | BP4: 6.1.Качество исполнения бюджетных обязательств | BR4: 6.Исполнение судебных актов | BT4: ВСЕГО
A5: п\п
D6: % | E6: баллы | F6: % | G6: баллы | H6: % | I6: баллы | J6: % | K6: баллы | L6: % | M6: баллы | N6: % | O6: баллы | P6: % | Q6: баллы | R6: % | S6: баллы | T6: % | U6: баллы | V6: % | W6: баллы | Z6: % | AA6: баллы | AB6: % | AC6: баллы | AD6: % | AE6: баллы | AF6: % | AG6: баллы | AH6: баллы | AI6: % | AJ6: баллы | AK6: % | AL6: баллы | AM6: % | AN6: баллы | AO6: % | AP6: баллы | AS6: баллы | AT6: % | AU6: баллы | AV6: % | AW6: баллы | AX6: % | AY6: баллы | AZ6: % | BA6: баллы | BB6: баллы | BC6: баллы | BD6: баллы | BE6: % | BF6: баллы | BG6: % | BH6: баллы | BI6: % | BJ6: баллы | BL6: баллы | BM6: % | BN6: баллы | BO6: баллы | BP6: % | BQ6: баллы | BR6: % | BS6: баллы | BT6: Количество баллов
B7: 1 группа | X7: 1 группа | AQ7: 1 группа | BK7: 1 группа
A8: 1 | B8: Районный отдел образования | C8: 074 | D8: 0 | E8: 5 | F8: 0 | G8: 5 | H8: 0 | I8: 5 | J8: 100 | K8: 5 | L8: 0.2 | M8: 1 | N8: 77.6 | O8: 2 | P8: 98.6 | Q8: 3 | R8: 97.3 | S8: 3 | T8: 95.9 | U8: 2 | V8: =SUM(D8+F8+H8+J8+L8+N8+P8+R8+T8) -> 469.6 | W8: 31 | X8: Районный отдел образования | Y8: 074 | Z8: 99.9 | AA8: 3 | AB8: 54.1 | AC8: 0 | AD8: 100 | AE8: 3 | AF8: 99.9 | AG8: 10 | AH8: 10 | AI8: 82.9 | AJ8: 1 | AK8: 94.4 | AL8: 1 | AM8: 48.7 | AN8: 5 | AO8: =SUM(Z8+AB8+AD8+AF8+AI8+AK8+AM8) -> 579.9 | AP8: =SUM(AA8+AC8+AE8+AG8+AH8+AJ8+AL8+AN8) -> 33 | AQ8: Районный отдел образования | AR8: 074 | AS8: 8 | AT8: 0 | AU8: 5 | AV8: -0.8 | AW8: 10 | AX8: 0 | AY8: 10 | AZ8: =SUM(AT8+AV8+AX8) -> -0.8 | BA8: =SUM(AS8+AU8+AW8+AY8) -> 33 | BB8: 10 | BC8: 10 | BD8: 0 | BE8: 105.2 | BF8: 5 | BG8: 977.5 | BH8: 3 | BI8: =SUM(BE8+BG8) -> 1082.7 | BJ8: =SUM(BB8+BC8+BD8+BF8+BH8) -> 28 | BK8: Районный отдел образования | BL8: 5 | BM8: 0 | BN8: 5 | BO8: =SUM(BL8:BN8) -> 10 | BP8: 100 | BQ8: 10 | BR8: =SUM(BP8) -> 100 | BS8: =SUM(BQ8) -> 10 | BT8: =SUM(W8+AP8+BA8+BJ8+BO8+BS8) -> 145
A9: 2 | B9: Отдел культуры | C9: 057 | D9: 0 | E9: 5 | F9: 0 | G9: 5 | H9: 0 | I9: 5 | J9: 100 | K9: 5 | L9: 95.1 | M9: 3 | N9: 78.8 | O9: 3 | P9: -0.06 | Q9: 1 | R9: -4.89 | S9: 1 | T9: 99.7 | U9: 3 | V9: 368.65 | W9: 31 | X9: Отдел культуры | Y9: 057 | Z9: 98.5 | AA9: 2 | AB9: 18 | AC9: 10 | AD9: 98.8 | AE9: 2 | AF9: 95 | AG9: 10 | AH9: 10 | AI9: 99.1 | AJ9: 3 | AK9: 99.9 | AL9: 2 | AM9: 27.8 | AN9: 10 | AO9: =SUM(Z9+AB9+AD9+AF9+AI9+AK9+AM9) -> 537.1 | AP9: =SUM(AA9+AC9+AE9+AG9+AH9+AJ9+AL9+AN9) -> 49 | AQ9: Отдел культуры | AR9: 057 | AS9: 8 | AT9: 0 | AU9: 5 | AV9: 0 | AW9: 0 | AX9: 0 | AY9: 10 | AZ9: =SUM(AT9+AV9+AX9) -> 0 | BA9: =SUM(AS9+AU9+AW9+AY9) -> 23 | BB9: 10 | BC9: 10 | BD9: 0 | BE9: 0 | BF9: 10 | BG9: 860 | BH9: 2 | BI9: =SUM(BE9+BG9) -> 860 | BJ9: =SUM(BB9+BC9+BD9+BF9+BH9) -> 32 | BK9: Отдел культуры | BL9: 5 | BM9: 0 | BN9: 5 | BO9: =SUM(BL9:BN9) -> 10 | BP9: 100 | BQ9: 10 | BR9: =SUM(BP9) -> 100 | BS9: =SUM(BQ9) -> 10 | BT9: =SUM(W9+AP9+BA9+BJ9+BO9+BS9) -> 155
A10: 3 | B10: Администрация | C10: 487 | D10: 0 | E10: 5 | F10: 0 | G10: 5 | H10: 0 | I10: 5 | J10: 100 | K10: 5 | L10: 35.2 | M10: 2 | N10: 30.6 | O10: 1 | P10: 61.9 | Q10: 2 | R10: 61.6 | S10: 2 | T10: 92.8 | U10: 1 | V10: 382.1 | W10: 28 | X10: Администрация | Y10: 487 | Z10: 85.6 | AA10: 1 | AB10: 80.8 | AC10: 0 | AD10: 93.1 | AE10: 1 | AF10: 97 | AG10: 10 | AH10: 10 | AI10: 95.4 | AJ10: 2 | AK10: 100 | AL10: 3 | AM10: 39.8 | AN10: 5 | AO10: 591.7 | AP10: 32 | AQ10: Администрация | AR10: 487 | AS10: 8 | AT10: 0 | AU10: 5 | AV10: -17.9 | AW10: 0 | AX10: 0 | AY10: 10 | AZ10: -17.9 | BA10: 23 | BB10: 10 | BC10: 10 | BD10: 0 | BE10: 0 | BF10: 5 | BG10: 70 | BH10: 1 | BI10: =SUM(BE10+BG10) -> 70 | BJ10: =SUM(BB10+BC10+BD10+BF10+BH10) -> 26 | BK10: Администрация | BL10: 5 | BM10: 0 | BN10: 5 | BO10: 10 | BP10: 100 | BQ10: 10 | BR10: 100 | BS10: 10 | BT10: =SUM(W10+AP10+BA10+BJ10+BO10+BS10) -> 129
B11: 2 группа | X11: 2 группа | AQ11: 2 группа | BK11: 2 группа
A12: 1 | B12: Управление сельского хозяйства | C12: 082 | D12: 0 | E12: 5 | F12: 0 | G12: 5 | H12: 0 | I12: 5 | J12: 100 | K12: 5 | L12: 2.8 | M12: 2 | P12: 99.8 | Q12: 2 | R12: 98.3 | S12: 2 | T12: 99.6 | U12: 1 | V12: =SUM(D12+F12+H12+J12+L12+N12+P12+R12+T12) -> 400.5 | W12: =SUM(E12+G12+I12+K12+M12+O12+Q12+S12+U12) -> 27 | X12: Управление сельского хозяйства | Y12: 082 | Z12: 97 | AA12: 1 | AB12: -60 | AC12: 10 | AD12: 88 | AE12: 1 | AF12: 100 | AG12: 10 | AH12: 10 | AI12: 98.2 | AJ12: 1 | AO12: 323.2 | AP12: 33 | AQ12: Управление сельского хозяйства | AR12: 082 | AS12: 8 | AT12: 0 | AU12: 5 | AV12: 0 | AW12: 10 | AX12: 0 | AY12: 10 | AZ12: 0 | BA12: 33 | BB12: 10 | BC12: 10 | BD12: 0 | BE12: 4.8 | BF12: 10 | BG12: 49.7 | BH12: 2 | BI12: =SUM(BE12+BG12) -> 54.5 | BJ12: =SUM(BB12+BC12+BD12+BF12+BH12) -> 32 | BK12: Управление сельского хозяйства | BL12: 5 | BM12: 0 | BN12: 5 | BO12: 10 | BP12: 100 | BQ12: 10 | BR12: 100 | BS12: 10 | BT12: =SUM(W12+AP12+BA12+BJ12+BO12+BS12) -> 145
A13: 2 | B13: Финансовое управление | C13: 001 | D13: 0 | E13: 5 | F13: 0 | G13: 5 | H13: 0 | I13: 5 | J13: 100 | K13: 5 | L13: 0.5 | M13: 1 | P13: 83.1 | Q13: 1 | R13: 84.3 | S13: 1 | T13: 99.7 | U13: 2 | V13: =SUM(D13+F13+H13+J13+L13+N13+P13+R13+T13) -> 367.6 | W13: =SUM(E13+G13+I13+K13+M13+O13+Q13+S13+U13) -> 25 | X13: Финансовое управление | Y13: 001 | Z13: 98.3 | AA13: 2 | AB13: -12.8 | AC13: 10 | AD13: 95.9 | AE13: 2 | AF13: 92.4 | AG13: 10 | AH13: 10 | AI13: 99.6 | AJ13: 2 | AO13: 373.4 | AP13: 36 | AQ13: Финансовое управление | AR13: 001 | AS13: 8 | AT13: 0 | AU13: 5 | AV13: 35.3 | AW13: 0 | AX13: 0 | AY13: 10 | AZ13: 35.3 | BA13: =SUM(AS13+AU13+AW13+AY13) -> 23 | BB13: 10 | BC13: 10 | BD13: 0 | BE13: 118 | BF13: 0 | BG13: 43.3 | BH13: 1 | BI13: =SUM(BE13+BG13) -> 161.3 | BJ13: =SUM(BB13+BC13+BD13+BF13+BH13) -> 21 | BK13: Финансовое управление | BL13: 5 | BM13: 0 | BN13: 5 | BO13: 10 | BP13: 100 | BQ13: 10 | BR13: 100 | BS13: 10 | BT13: =SUM(W13+AP13+BA13+BJ13+BO13+BS13) -> 125
AI14: =SUM(AI8:AI13) -> 475.2

Sheet Лист2

Sheet Лист3
